bitfinex/quotes_ETHUSD_20251010
["timestamp","ask_amount","ask_price","bid_price","bid_amount"]
[1760138271834,1.92,3845.2,3845.1,5.2064]
[1760138272035,1.4529,3849.9,3845.2,0.2603]
[1760138272241,1.4529,3849.9,3845.9,0.2603]
[1760138272567,1.4529,3849.9,3845.9,5.4606]
[1760138272866,1.4529,3849.9,3845.9,1.4903]
[1760138273030,1.006,3849.9,3846.1,0.2603]
[1760138273234,0.7462,3849.9,3846.1,0.2603]
[1760138273465,0.005,3848.9,3846.1,0.2603]
[1760138273847,0.005,3848.9,3846.1,5.4585]
[1760138274248,0.005,3848.9,3846.1,6.6885]
[1760138274566,0.005,3848.9,3846.2,0.2603]
[1760138274966,0.005,3848.9,3846.2,6.4999]
[1760138275139,1.92,3847.0,3846.2,6.4999]
[1760138275341,1.92,3846.8,3846.4,0.2603]
[1760138275550,1.915,3847.0,3846.4,6.4997]
[1760138275950,1.8187487,3848.8,3846.4,6.4997]
[1760138276149,0.005,3848.9,3846.4,6.4997]
[1760138276669,0.005,3848.9,3846.3,0.2603]
[1760138278149,0.4292,3848.8,3846.3,1.4903]
[1760138278348,0.4292,3848.8,3846.2,1.4203]
[1760138278349,1.81988352,3846.4,3846.2,1.4203]
[1760138278571,1.81988352,3846.4,3845.9,1.23]
[1760138278572,1.8200728,3846.0,3845.9,1e-08]
[1760138279642,1.925,3848.9,3845.9,1.49030001]
[1760138279947,0.005,3848.9,3845.9,6.68950001]
[1760138280362,0.005,3848.9,3845.9,7.23870001]
[1760138280740,0.005,3848.9,3846.4,0.2603]
[1760138280938,0.005,3848.9,3846.6,0.2603]
[1760138281156,1.81949836,3847.3,3847.1,0.2603]
[1760138281359,1.81949836,3847.3,3847.1,5.459]
[1760138281679,0.005,3848.9,3847.2,0.2603]
[1760138282187,1.1804,3849.9,3848.8,0.2603]
[1760138282188,0.65400792,3849.9,3848.8,0.2603]
[1760138282480,0.65400792,3849.9,3849.8,0.2603]
[1760138282686,0.65400792,3849.9,3849.8,5.4554]
[1760138282894,0.65400792,3849.9,3849.8,6.0046]
[1760138283098,0.54836309,3849.9,3849.8,6.0046]
[1760138283457,0.53247701,3849.9,3849.8,6.0046]
[1760138283656,0.53247701,3849.9,3849.8,7.2346]
[1760138284661,0.53247701,3849.9,3849.8,5.6457]
[1760138285287,0.53247701,3849.9,3849.8,2.7203]
[1760138285689,0.53247701,3849.9,3847.3,0.5492]
[1760138285892,1.81862094,3849.1,3848.1,0.2603]
[1760138286104,1.81862094,3849.1,3848.0,0.5492]
[1760138286105,1.55886008,3849.0,3848.8,0.2603]
[1760138286412,0.53247701,3849.9,3848.8,0.2603]
[1760138286413,0.53247701,3849.9,3849.5,0.5492]
[1760138286698,0.53247701,3849.9,3849.8,0.2603]
[1760138286994,0.53247701,3849.9,3849.8,5.4554]
[1760138287200,0.53247701,3849.9,3849.8,6.0046]
[1760138287560,0.53247701,3849.9,3849.8,5.4554]
[1760138287966,0.53247701,3849.9,3849.8,6.6854]
[1760138288385,0.53247701,3849.9,3849.8,7.2346]
[1760138289459,0.005,3850.9,3849.8,9.72285684]
[1760138289674,0.005,3850.9,3850.2,0.8095]
[1760138289876,0.005,3850.9,3850.2,6.01925019]
[1760138290074,0.005,3850.9,3850.2,6.004]
[1760138290297,0.005,3850.9,3850.2,5.4548]
[1760138290618,0.005,3850.9,3850.2,6.004]
[1760138290815,0.005,3850.9,3850.2,7.234]
[1760138291421,0.005,3850.9,3850.2,5.934]
[1760138291591,0.005,3850.9,3850.2,6.1943]
[1760138291992,0.005,3850.9,3850.2,5.6451]
[1760138292194,0.005,3850.9,3850.2,6.8751]
[1760138292532,1.55830963,3850.4,3849.8,2.46]
[1760138292691,1.55848203,3849.9,3849.8,1e-08]
[1760138293121,1.92,3849.4,3847.1,0.005]
[1760138293303,0.2277,3851.9,3847.1,0.005]
[1760138293304,0.4292,3850.5,3847.1,0.005]
[1760138293606,0.4292,3850.2,3846.4,1.3553]
[1760138293811,0.4292,3850.2,3846.4,6.5524]
[1760138294091,1.55919241,3850.7,3846.4,6.5524]
[1760138294293,1.55841729,3850.1,3846.4,6.5524]
[1760138294608,0.1296,3848.4,3847.8,0.1296]
[1760138294809,0.001,3850.3,3847.9,0.2603]
[1760138295123,0.001,3850.3,3847.9,5.4579]
[1760138295421,0.001,3850.3,3848.1,0.2603]
[1760138295629,0.001,3850.3,3848.5,0.2603]
[1760138295834,0.001,3850.3,3848.7,0.2603]
[1760138295989,0.005,3849.9,3849.1,0.2603]
[1760138296186,0.005,3849.9,3849.1,5.4563]
[1760138296387,0.005,3849.9,3849.5,0.2603]
[1760138296587,0.005,3849.9,3849.5,5.4558]
[1760138296999,0.005,3849.9,3849.6,0.02597672]
[1760138297190,0.005,3849.9,3849.7,0.2603]
[1760138297616,0.005,3849.9,3849.6,4.1556]
[1760138297833,0.005,3849.9,3849.7,0.2603]
[1760138298032,0.005,3849.9,3849.7,1.4903]
[1760138298203,0.005,3849.9,3849.7,7.7252]
[1760138299315,0.005,3849.9,3849.8,0.01872965]
[1760138299519,0.005,3849.9,3849.8,6.51382965]
[1760138299718,0.005,3849.9,3849.8,6.4951]
[1760138300704,0.005,3849.9,3849.8,7.7251]
[1760138300906,0.001,3850.3,3850.0,1.54890619]
[1760138301129,0.005,3852.9,3850.9,1.51387713]
[1760138301310,0.005,3852.9,3851.3,0.2603]
[1760138301637,0.005,3852.9,3852.5,0.2603]
[1760138301846,0.005,3852.9,3852.7,1.47237426]
[1760138302211,0.005,3852.9,3852.7,0.2603]
[1760138302747,0.005,3852.9,3852.6,0.2603]
[1760138303735,0.005,3852.9,3852.8,0.2603]
[1760138304805,0.005,3852.9,3852.5,1.16]
[1760138305005,0.005,3852.9,3852.8,1.23]
[1760138306125,1.03825987,3852.6,3852.5,1.16]
[1760138306325,0.005,3852.9,3852.5,1.16]
[1760138306530,0.005,3852.9,3852.5,2.39]
[1760138307458,0.006,3852.9,3852.5,2.39]
[1760138307626,0.006,3852.9,3852.6,0.00932343]
[1760138307964,0.006,3852.9,3852.5,3.62]
[1760138309261,0.006,3852.9,3852.5,3.55]
[1760138310056,1.03823951,3852.7,3852.5,3.55]
[1760138310352,1.03824175,3852.7,3852.5,3.55]
[1760138310555,1.03824175,3852.7,3852.5,4.78]
[1760138310853,0.006,3852.9,3852.5,4.78]
[1760138311926,0.006,3852.9,3852.5,6.01]
[1760138312445,0.006,3852.9,3852.5,12.2411]
[1760138312773,0.006,3852.9,3852.7,1.47237426]
[1760138312954,0.006,3852.9,3852.8,0.00723458]
[1760138313272,0.005,3859.9,3852.8,6.49823458]
[1760138313470,0.005,3859.9,3852.8,7.721]
[1760138314051,0.005,3859.9,3853.0,0.2603]
[1760138314252,0.005,3859.9,3853.6,1.2599599]
[1760138314576,0.005,3859.9,3854.9,1.52269934]
[1760138314781,1.03654261,3859.0,3855.1,0.2603]
[1760138315086,0.005,3859.9,3855.1,6.4879]
[1760138315383,0.1296,3857.2,3856.6,0.2603]
[1760138315549,0.005,3859.9,3856.6,0.2603]
[1760138315975,0.005,3859.9,3855.2,0.2603]
[1760138316547,1.04131226,3859.9,3855.2,7.5275]
[1760138316895,1.04130516,3859.9,3855.2,7.5275]
[1760138317193,0.005,3859.9,3855.2,7.5275]
[1760138317656,0.005,3859.9,3855.2,8.7575]
[1760138317977,0.005,3859.9,3855.6,0.2603]
[1760138318186,0.005,3859.9,3855.6,7.2667]
[1760138318995,1.03689917,3857.7,3855.6,5.9667]
[1760138319145,1.03664652,3858.6,3855.6,1.23]
[1760138319453,1.04157268,3858.9,3855.6,1.23]
[1760138319654,0.005,3858.9,3855.6,1.23]
[1760138320294,0.005,3858.9,3855.6,6.4164]
[1760138320457,0.005,3858.9,3855.6,7.6464]
[1760138320656,1.03708728,3857.0,3855.6,7.6464]
[1760138320857,1.04212009,3856.9,3855.6,7.6464]
[1760138321059,0.005,3856.9,3855.6,7.6464]
[1760138321670,0.005,3856.9,3855.6,6.3464]
[1760138321976,0.005,3856.9,3855.6,7.5764]
[1760138323171,0.005,3856.9,3855.6,8.8064]
[1760138323884,0.005,3856.9,3855.7,0.00677222]
[1760138324048,0.005,3856.9,3855.7,5.2571]
[1760138324484,0.005,3856.9,3855.7,6.4871]
[1760138324987,0.005,3856.9,3855.7,5.1871]
[1760138325807,1.03737365,3855.9,3855.7,5.1871]
[1760138326081,1.03753274,3855.3,3855.2,1.23]
[1760138326269,1.03753274,3855.3,3855.2,1.00627701]
[1760138326799,1.926,3856.9,3855.2,1.00627701]
[1760138326800,0.006,3856.9,3855.2,1.00627701]
[1760138327154,0.006,3856.9,3855.0,500.0]
[1760138327155,1.03755965,3855.2,3855.0,478.90117718]
[1760138327552,1.03755965,3855.2,3855.0,480.13117718]
[1760138327888,0.001,3857.7,3855.0,480.13117718]
[1760138328251,0.001,3857.7,3855.0,478.83117718]
[1760138328452,0.4322,3858.3,3855.0,478.83117718]
[1760138328683,0.4322,3857.7,3855.0,478.83117718]
[1760138328885,0.005,3857.9,3855.1,0.2603]
[1760138329051,0.4512,3857.4,3855.1,0.2603]
[1760138329251,0.4512,3856.8,3855.1,0.2603]
[1760138329594,0.2172,3857.8,3855.1,0.2603]
[1760138329773,0.4512,3857.5,3855.1,0.2603]
[1760138330256,0.4512,3857.5,3855.1,1.4903]
[1760138330456,0.005,3857.9,3855.1,1.4903]
[1760138331153,0.4562,3857.9,3855.1,1.4903]
[1760138331360,0.4512,3857.1,3855.2,0.2603]
[1760138331568,0.005,3857.9,3855.2,0.2603]
[1760138331767,0.4512,3856.8,3855.2,0.2603]
[1760138332523,0.005,3857.9,3855.2,0.2603]
[1760138333208,0.005,3857.9,3855.2,1.4903]
[1760138334015,0.005,3857.9,3855.8,0.05]
[1760138334624,0.005,3857.9,3855.9,0.2603]
[1760138335987,0.005,3857.9,3856.0,0.2603]
[1760138336512,0.6636,3857.2,3856.0,0.25640553]
[1760138336721,0.6636,3857.2,3855.9,0.1903]
[1760138336881,0.4363,3857.8,3855.9,0.1903]
[1760138337086,0.005,3857.9,3856.0,0.2603]
[1760138337592,0.005,3857.9,3856.0,1.4903]
[1760138338101,0.2273,3857.7,3856.0,1.4903]
[1760138338307,0.005,3857.9,3856.0,1.4903]
[1760138338818,0.4363,3857.5,3856.0,1.4203]
[1760138339196,0.005,3857.9,3856.0,1.4203]
[1760138339785,0.005,3857.9,3856.1,0.2603]
[1760138340287,0.005,3857.9,3856.1,0.1903]
[1760138340684,0.005,3857.9,3856.2,0.2603]
[1760138341196,0.005,3857.9,3856.2,0.25640528]
[1760138341685,0.005,3857.9,3856.2,1.48640528]
[1760138342116,0.005,3857.9,3856.2,0.18640528]
[1760138342283,0.4363,3857.0,3856.2,0.18640528]
[1760138342485,0.2273,3857.8,3856.2,0.18640528]
[1760138342698,0.4363,3856.8,3856.2,0.18640528]
[1760138343121,0.4363,3857.7,3856.2,1.41640528]
[1760138343320,0.6636,3857.8,3856.2,1.41640528]
[1760138343507,0.2273,3857.8,3856.2,1.41640528]
[1760138343687,0.4363,3856.8,3856.0,1.4203]
[1760138343890,0.99999999,3856.6,3856.0,0.4285]
[1760138344090,0.99999999,3856.4,3856.0,0.4285]
[1760138344293,0.2273,3857.8,3856.0,0.4285]
[1760138344490,0.2273,3857.8,3856.0,1.6585]
[1760138345414,0.005,3857.9,3856.0,1.6585]
[1760138345899,0.005,3857.9,3856.0,3.1488]
[1760138346100,0.005,3857.9,3856.2,0.2603]
[1760138346734,0.005,3857.9,3856.4,0.2603]
[1760138347254,0.005,3857.9,3856.5,0.7164]
[1760138347733,0.005,3857.9,3856.7,0.2603]
[1760138348235,0.005,3857.9,3856.8,0.7164]
[1760138348845,0.005,3857.9,3856.8,1.9464]
[1760138349962,0.005,3857.9,3857.0,0.2603]
[1760138350666,0.1296,3857.0,3856.9,0.4561]
[1760138350841,0.1296,3857.0,3856.9,0.2603]
[1760138351241,0.1296,3857.0,3856.9,0.7164]
[1760138351634,0.1296,3857.0,3856.9,1.9464]
[1760138351836,0.1296,3857.0,3856.9,0.6464]
[1760138352045,0.005,3857.9,3856.9,0.6464]
[1760138352267,0.005,3857.9,3856.9,0.16610011]
[1760138352978,0.005,3857.9,3856.9,1.39610011]
[1760138354251,0.005,3857.9,3856.9,2.62610011]
[1760138354451,0.005,3857.9,3857.0,0.4561]
[1760138355086,0.005,3857.9,3856.9,1.78220011]
[1760138355766,0.005,3857.9,3856.9,3.01220011]
[1760138357057,0.005,3857.9,3856.9,4.23830565]
[1760138357343,0.2323,3857.9,3856.9,2.93830565]
[1760138357676,1.43629999,3857.8,3856.9,2.46420565]
[1760138357908,0.99999999,3857.8,3856.9,1.35530565]
[1760138358183,0.99999999,3857.8,3854.1,0.005]
[1760138358184,0.99999999,3856.0,3854.1,0.005]
[1760138358491,0.2151,3855.9,3854.1,0.005]
[1760138358639,0.2163,3855.8,3854.1,0.005]
[1760138358844,0.1173,3855.8,3855.1,1.3523]
[1760138359151,1.09899999,3855.7,3855.1,1.3523]
[1760138359352,0.99999999,3855.3,3855.1,1.3513]
[1760138359580,0.99999999,3855.1,3854.1,0.005]
[1760138359902,0.99999999,3855.1,3855.0,479.54756676]
[1760138360204,0.99999999,3855.1,3855.0,479.32856676]
[1760138360356,1.09699999,3855.1,3855.0,479.32856676]
[1760138360784,2.34465781,3855.1,3855.0,478.19256689]
[1760138360996,1.09699999,3855.1,3855.0,474.4961556]
[1760138361193,1.09699999,3855.1,3855.0,475.7261556]
[1760138361495,2.34465781,3855.1,3855.0,475.7261556]
[1760138361713,2.34465781,3855.1,3855.0,474.81781109]
[1760138361994,2.34465781,3855.1,3855.0,472.35511475]
[1760138361995,0.097,3855.1,3855.0,472.35511475]
[1760138362167,1.09699999,3855.1,3855.0,472.35511475]
[1760138362572,2.34465781,3855.1,3855.0,472.35511475]
[1760138362767,1.09699999,3855.1,3855.0,473.58511475]
[1760138362973,0.097,3855.1,3855.0,473.58511475]
[1760138363173,1.09699999,3855.1,3855.0,473.58511475]
[1760138363718,0.097,3855.1,3855.0,473.58511475]
[1760138363872,0.23292944,3855.1,3855.0,473.58511475]
[1760138364074,0.097,3855.1,3855.0,474.81711475]
[1760138365370,0.097,3855.1,3855.0,476.04711475]
[1760138365865,1.09699999,3855.1,3855.0,476.04711475]
[1760138366064,1.09699999,3855.1,3855.0,474.74711475]
[1760138366673,1.09699999,3855.1,3855.0,472.63511475]
[1760138366893,1.09699999,3855.1,3855.0,473.86511475]
[1760138367898,0.097,3855.1,3855.0,473.86511475]
[1760138368101,1.09699999,3855.1,3855.0,473.86511475]
[1760138368431,1.09699999,3855.1,3855.0,475.09511475]
[1760138368590,0.097,3855.1,3855.0,475.09511475]
[1760138369682,0.097,3855.1,3855.0,476.32511475]
[1760138370114,1.09699999,3855.1,3855.0,476.32511475]
[1760138370300,0.097,3855.1,3855.0,476.32511475]
[1760138370498,0.097,3855.1,3855.0,474.21311475]
[1760138371206,0.097,3855.1,3855.0,475.44311475]
[1760138372505,0.097,3855.1,3855.0,476.67311475]
[1760138373398,1.09699999,3855.1,3855.0,476.67311475]
[1760138373793,0.097,3855.1,3855.0,476.67311475]
[1760138373990,1.09699999,3855.1,3855.0,477.90311475]
[1760138374630,0.02021399,3855.1,3855.0,477.90311475]
[1760138375194,0.02021399,3855.1,3855.0,477.25311475]
[1760138375427,0.02021399,3855.1,3855.0,478.48311475]
[1760138376760,0.02021399,3855.1,3855.0,479.71311475]
[1760138376925,1.26787181,3855.1,3855.0,479.71311475]
[1760138377327,0.02021399,3855.1,3855.0,479.69021475]
[1760138377550,0.02021399,3855.1,3855.0,478.2349435]
[1760138378051,0.1173,3855.8,3855.0,478.2349435]
[1760138378252,0.1173,3855.8,3855.0,479.4649435]
[1760138378749,0.02021399,3855.2,3855.0,479.06683373]
[1760138379550,0.1173,3855.8,3855.0,480.29683373]
[1760138380049,0.02021399,3855.3,3855.0,480.29683373]
[1760138380247,0.02021399,3855.5,3855.0,480.29683373]
[1760138380479,0.1173,3855.8,3855.0,480.29683373]
[1760138380823,0.02021399,3855.3,3855.0,481.52683373]
[1760138381226,0.02021399,3855.3,3855.0,481.40153373]
[1760138381460,0.1173,3855.8,3855.0,481.40153373]
[1760138382127,0.1173,3855.8,3855.0,482.63153373]
[1760138382465,0.02021399,3855.1,3855.0,482.63153373]
[1760138382675,0.1173,3855.8,3855.0,482.63153373]
[1760138383423,0.1183,3855.8,3855.0,482.63153373]
[1760138383642,0.1183,3855.8,3855.0,483.86153373]
[1760138385065,0.02021399,3855.4,3855.0,485.09153373]
[1760138385279,0.1183,3855.8,3855.0,485.09153373]
[1760138385877,0.13851399,3855.8,3855.0,485.09153373]
[1760138386095,0.1183,3855.8,3855.0,485.09153373]
[1760138386590,0.1183,3855.8,3855.0,486.32153373]
[1760138386795,0.001,3856.2,3855.0,486.32153373]
[1760138387794,0.02021399,3855.5,3855.0,486.32153373]
[1760138388036,0.02021399,3855.5,3855.0,487.55153373]
[1760138388486,0.02021399,3855.4,3855.0,487.55153373]
[1760138388805,0.02021399,3855.7,3855.0,487.55153373]
[1760138388977,0.001,3856.2,3855.0,487.55153373]
[1760138389307,0.02021399,3855.5,3855.0,487.55153373]
[1760138389494,0.02021399,3855.1,3855.0,488.78153373]
[1760138389891,0.02021399,3855.7,3855.0,488.78153373]
[1760138390210,0.001,3856.2,3855.0,488.78153373]
[1760138390211,0.02021399,3855.1,3855.0,488.78153373]
[1760138391065,0.02021399,3855.1,3855.0,490.01153373]
[1760138391282,0.001,3856.2,3855.0,490.01153373]
[1760138391658,0.02121399,3856.2,3855.0,490.01153373]
[1760138391885,0.001,3856.2,3855.0,490.01153373]
[1760138392592,0.001,3856.2,3855.0,491.24153373]
[1760138392787,1.29904904,3856.1,3855.0,491.24153373]
[1760138393110,0.001,3856.2,3855.0,491.24153373]
[1760138394025,0.001,3856.2,3855.0,492.47153373]
[1760138394389,0.001,3856.2,3855.2,0.979786]
[1760138394889,0.001,3856.2,3855.0,492.47153373]
[1760138395727,1.29904904,3856.1,3855.0,493.70153373]
[1760138397022,1.29904904,3856.1,3855.0,494.93153373]
[1760138397319,0.001,3856.2,3855.0,494.93153373]
[1760138397914,1.29904904,3856.1,3855.0,494.93153373]
[1760138398290,1.29904904,3856.1,3855.0,492.12602344]
[1760138398493,0.001,3856.2,3855.0,492.12602344]
[1760138402409,0.001,3856.2,3855.0,493.35602344]
[1760138404029,0.001,3856.2,3855.0,494.58602344]
[1760138404414,0.02021399,3855.3,3855.0,494.58012344]
[1760138404727,0.001,3856.2,3855.0,494.58012344]
[1760138404728,1.26450886,3856.2,3855.0,494.58012344]
[1760138405025,1.29904904,3856.1,3855.0,494.58012344]
[1760138405228,1.29904904,3856.1,3855.0,495.81012344]
[1760138405396,0.02021399,3855.2,3855.0,495.81012344]
[1760138405596,1.31926303,3856.1,3855.0,495.81012344]
[1760138405896,0.001,3856.2,3855.0,495.81012344]
[1760138406514,0.001,3856.2,3855.0,497.04012344]
[1760138407341,1.29904904,3856.1,3855.0,497.04012344]
[1760138407939,0.001,3856.2,3855.0,498.27012344]
[1760138408637,1.26450886,3856.2,3855.0,498.27012344]
[1760138409142,0.02021399,3855.9,3855.0,492.32641645]
[1760138409340,0.02021399,3855.1,3855.0,493.02687422]
[1760138410039,1.26450886,3856.2,3855.0,493.02687422]
[1760138410354,0.02021399,3855.1,3855.0,492.27687422]
[1760138410593,0.22468417,3855.1,3855.0,493.27364346]
[1760138410709,0.20447018,3855.1,3855.0,493.25364346]
[1760138410906,0.001,3856.2,3855.0,493.25364346]
[1760138411220,0.02021399,3855.7,3855.0,493.25364346]
[1760138411419,1.30168577,3855.7,3855.0,493.25364346]
[1760138411617,0.17904904,3856.1,3855.0,493.25364346]
[1760138412040,0.001,3856.2,3855.0,494.48364346]
[1760138412253,0.001,3856.2,3855.0,494.07828702]
[1760138413316,0.001,3856.2,3855.0,495.30828702]
[1760138414616,0.001,3856.2,3855.0,496.53828702]
[1760138414812,1.29904904,3856.1,3855.0,496.53828702]
[1760138415009,0.14904904,3856.1,3855.0,496.53828702]
[1760138415244,0.001,3856.2,3855.0,496.53828702]
[1760138415943,1.26450886,3856.2,3855.0,496.53828702]
[1760138416113,1.22707698,3855.9,3855.0,497.36293412]
[1760138416319,0.02021399,3855.1,3855.0,497.10514484]
[1760138416520,0.02021399,3855.1,3855.0,496.37103915]
[1760138416727,0.001,3856.2,3855.0,496.19227834]
[1760138416728,1.29904904,3856.1,3855.0,496.19227834]
[1760138416932,1.29904904,3856.1,3855.0,492.44776597]
[1760138417119,0.15817335,3856.0,3855.0,490.44776597]
[1760138417327,0.02021399,3855.1,3855.0,489.42050904]
[1760138417646,0.18106842,3855.8,3855.0,490.19950964]
[1760138417855,0.02021399,3855.1,3855.0,489.1058928]
[1760138418039,45.02021399,3855.1,3855.0,486.79581849]
[1760138418240,45.16231759,3855.1,3855.0,483.24919574]
[1760138418420,45.20545639,3855.1,3855.0,481.88868869]
[1760138418620,45.02021399,3855.1,3855.0,480.35775724]
[1760138418852,45.02021399,3855.1,3855.0,481.42897544]
[1760138419021,46.40997541,3855.1,3855.0,480.03949859]
[1760138419220,46.26787181,3855.1,3855.0,477.09528052]
[1760138419422,45.16231759,3855.1,3855.0,473.9862695]
[1760138419755,45.15787181,3855.1,3855.0,471.04344124]
[1760138420060,45.27976142,3855.1,3855.0,468.28455091]
[1760138420232,45.27976142,3855.1,3855.0,469.10665008]
[1760138420424,45.15787181,3855.1,3855.0,467.38016147]
[1760138420626,45.0,3855.1,3855.0,464.24432855]
[1760138420825,45.0,3855.1,3855.0,463.43219876]
[1760138421026,45.16231759,3855.1,3855.0,462.52306914]
[1760138421252,45.02021399,3855.1,3855.0,460.69391841]
[1760138421453,45.02021399,3855.1,3855.0,460.04391841]
[1760138421454,46.26787181,3855.1,3855.0,460.04391841]
[1760138421654,46.26787181,3855.1,3855.0,460.83092056]
[1760138421655,46.20997541,3855.1,3855.0,460.83092056]
[1760138421829,46.06787181,3855.1,3855.0,459.21922475]
[1760138422154,1.06787181,3855.1,3855.0,458.04528972]
[1760138422461,0.02021399,3855.1,3855.0,457.93928972]
[1760138422757,0.02021399,3855.1,3855.0,455.38939619]
[1760138423059,0.02021399,3855.1,3855.0,454.48012277]
[1760138423444,0.22962111,3855.1,3855.0,454.48012277]
[1760138423758,0.20940712,3855.1,3855.0,454.48012277]
[1760138424052,0.20940712,3855.1,3855.0,453.48012277]
[1760138424255,0.22962111,3855.1,3855.0,454.71012277]
[1760138424454,0.22962111,3855.1,3855.0,453.71212277]
[1760138424624,0.22962111,3855.1,3855.0,453.45660209]
[1760138424822,0.20940712,3855.1,3855.0,453.45660209]
[1760138425133,0.23414342,3856.1,3855.0,453.45660209]
[1760138425664,0.001,3856.2,3855.0,453.45660209]
[1760138425665,0.001,3856.2,3855.0,452.81860209]
[1760138425965,0.23414342,3856.1,3855.0,453.04860209]
[1760138426262,0.23414342,3856.1,3855.0,452.48369837]
[1760138426863,0.02021399,3855.2,3855.0,452.48369837]
[1760138427052,0.24756811,3855.1,3855.0,452.48369837]
[1760138427252,0.24756811,3855.1,3855.0,453.44611174]
[1760138427454,0.24756811,3855.1,3855.0,452.79611174]
[1760138427642,0.38352655,3855.1,3855.0,452.6601533]
[1760138427962,0.38352655,3855.1,3855.0,451.50528881]
[1760138428165,0.40374054,3855.1,3855.0,450.74880375]
[1760138428362,0.40374054,3855.1,3855.0,450.46309245]
[1760138428568,0.40374054,3855.1,3855.0,450.43759245]
[1760138428569,0.38352655,3855.1,3855.0,450.43759245]
[1760138428875,1.63118437,3855.1,3855.0,450.43759245]
[1760138429038,1.63118437,3855.1,3855.0,449.63019991]
[1760138429441,0.38352655,3855.1,3855.0,449.63019991]
[1760138429866,0.38352655,3855.1,3855.0,450.86019991]
[1760138430444,0.24756811,3855.1,3855.0,450.86019991]
[1760138430643,0.20761639,3855.1,3855.0,450.86019991]
[1760138430968,0.13592514,3855.8,3855.0,450.86019991]
[1760138431156,0.13592514,3855.8,3855.0,452.09019991]
[1760138431668,0.13592514,3855.8,3855.2,0.979786]
[1760138431870,0.13592514,3855.8,3855.0,452.09019991]
[1760138432242,0.67904904,3856.1,3855.0,452.09019991]
[1760138432569,0.67904904,3856.1,3855.5,0.979786]
[1760138432772,0.14450886,3856.2,3855.8,0.979786]
[1760138432958,0.001,3856.2,3856.1,0.979786]
[1760138433178,0.001,3856.2,3855.0,453.32019991]
[1760138433179,0.2323,3857.9,3857.5,0.979786]
[1760138433494,0.099,3857.8,3855.5,0.4495]
[1760138433660,0.099,3857.8,3856.5,0.979786]
[1760138434195,0.099,3857.8,3857.4,0.979786]
[1760138434413,0.0993,3857.7,3857.4,0.979786]
[1760138434566,0.1329,3857.9,3856.5,1.23]
[1760138434758,0.005,3857.9,3857.8,0.979786]
[1760138434961,0.005,3857.9,3856.5,1.23]
[1760138435696,0.005,3857.9,3856.5,2.46]
[1760138435864,0.4112,3860.5,3856.5,2.46]
[1760138436060,0.1844,3860.5,3856.5,3.45999999]
[1760138436295,0.005,3860.9,3856.5,2.46]
[1760138436498,0.1849,3860.6,3856.5,2.46]
[1760138436801,0.1849,3860.6,3856.6,0.99999999]
[1760138436972,0.1849,3860.6,3856.5,2.39]
[1760138437295,0.1849,3860.6,3856.6,0.4495]
[1760138437709,0.005,3860.9,3856.6,0.4495]
[1760138437993,0.006,3858.9,3856.6,0.4495]
[1760138438426,0.1853,3858.8,3856.6,1.23]
[1760138438564,0.1853,3858.7,3856.6,1.23]
[1760138438763,0.1853,3858.6,3856.6,1.23]
[1760138439000,0.1853,3858.5,3856.6,1.23]
[1760138439170,0.1853,3858.4,3856.6,1.23]
[1760138439371,0.1853,3858.3,3856.6,1.23]
[1760138439709,0.1853,3858.2,3856.6,1.23]
[1760138439869,0.1853,3858.1,3856.6,2.46]
[1760138440070,0.1853,3858.0,3856.6,2.46]
[1760138440289,0.3141,3857.9,3856.6,2.46]
[1760138440492,1.22669777,3857.7,3856.6,1.16]
[1760138440722,1.22550582,3857.5,3856.6,0.23244479]
[1760138440924,1.22790959,3857.3,3856.5,1.92048158]
[1760138441124,1.22790959,3857.3,3856.5,2.85195889]
[1760138441333,1.21991459,3857.1,3856.5,2.58372111]
[1760138441638,1.42491147,3857.0,3856.5,2.09068283]
[1760138442130,1.29495329,3856.9,3856.5,2.09068283]
[1760138442338,0.24808525,3855.8,3855.1,0.005]
[1760138442521,1.25890166,3856.7,3855.1,1.235]
[1760138442698,1.28604952,3856.5,3855.1,0.93865577]
[1760138442901,1.92,3857.3,3855.0,453.00728664]
[1760138442902,3.15407642,3856.3,3855.0,453.00728664]
[1760138443099,1.29904904,3856.1,3855.0,452.74822637]
[1760138443299,0.24988407,3856.0,3855.0,452.24646862]
[1760138443643,1.22707698,3855.9,3855.0,452.24646862]
[1760138443808,1.28147178,3855.7,3855.0,453.47646862]
[1760138444012,0.29716138,3855.6,3855.0,450.70381908]
[1760138444229,1.29461602,3855.5,3855.0,447.76170655]
[1760138444425,0.23566405,3855.4,3855.0,447.52761733]
[1760138444633,0.23566405,3855.4,3855.0,447.30439223]
[1760138444946,1.28658257,3855.3,3855.0,447.30439223]
[1760138445111,0.19808452,3855.2,3855.0,448.53439223]
[1760138445919,0.19808452,3855.2,3855.0,448.26898991]
[1760138446245,0.19808452,3855.2,3855.0,442.09903999]
[1760138446420,0.99999999,3855.1,3855.0,438.74039285]
[1760138446619,1.22423345,3855.1,3855.0,435.98269432]
[1760138446806,2.24765781,3855.1,3855.0,435.60050765]
[1760138447016,2.24765781,3855.1,3855.0,435.43948734]
[1760138447216,2.41865289,3855.1,3855.0,435.43948734]
[1760138447472,2.41865289,3855.1,3855.0,435.25196614]
[1760138447615,0.99999999,3855.1,3855.0,434.24888332]
[1760138447814,1.92,3855.4,3855.0,434.80472005]
[1760138448034,0.99999999,3855.1,3855.0,434.41844346]
[1760138448246,39.2549,3855.5,3855.0,434.41844346]
[1760138448566,0.99999999,3856.2,3855.0,434.41844346]
[1760138448977,1.29495329,3856.9,3855.0,434.41844346]
[1760138449178,36.7789,3858.5,3855.0,435.37617988]
[1760138449179,0.99999999,3855.7,3855.0,435.37617988]
[1760138449342,0.23374959,3855.6,3855.0,435.13153725]
[1760138450061,0.23374959,3855.6,3855.0,434.83544357]
[1760138450381,0.23374959,3855.6,3855.0,434.80950823]